Cogmind - Beta 12 --- EXPLORER MODE // 2023.12.02 @ 21:48:53 Player: daffie Result: Destroyed by H-55 Commando with Gauss Rifle Performance ------------- Evolutions (2) 1000 Regions Visited (6) 1200 Robots Destroyed (50) 250 Value Destroyed (1453) 1453 Prototype IDs (8) 160 Alien Tech Used (0) 0 Bonus (528) 528 TOTAL SCORE: 4591 Bonus ------- High Alert Combat Kills 28 Entered Garrisons 200 Aligned with FarCom 300 Cogmind --------- Core Integrity 0/550 Matter 19/300 Energy 27/265 System Corruption 0% Temperature Cool (9) Movement Flying (315) Ox4 Location -8/Garrison Parts ------- > --- POWER (2) -------- Improved Ion Engine > --- PROPULSION (4) --- Improved VTOL Module > --- UTILITY (4) ------ Targeting Computer > --- WEAPON (2) ------- Guided Plasma Cannon Mini Assault Cannon > --- INVENTORY (5) ---- YOLO Cannon High-powered Shotgun Field Lobotomy Kit (5) Peak State ------------ > --- POWER ------------ Ion Engine > --- PROPULSION ------- Flight Unit Improved VTOL Module Improved VTOL Module Improved VTOL Module > --- UTILITY ---------- Improved Cooling System Improved Terrain Scanner Targeting Computer Hardened Light Armor Plating > --- WEAPON ----------- Mini Assault Cannon Mini Assault Cannon > --- INVENTORY -------- Guided Plasma Cannon YOLO Cannon High-powered Shotgun Field Lobotomy Kit [Rating: 38] Favorites ----------- Power Ion Engine Engine Ion Engine Power Core Nuclear Core Propulsion Improved VTOL Module Treads Light Treads Leg Aluminum Leg Hover Unit Improved Hover Unit Flight Unit Improved VTOL Module Utility Targeting Computer Device Cooling System Storage Medium Storage Unit Processor Targeting Computer Protection Hardened Light Armor Plating Weapon EM Shotgun Energy Gun EM Shotgun Energy Cannon Guided Plasma Cannon Ballistic Gun High-powered Shotgun Ballistic Cannon Mini Assault Cannon Special Weapon Field Lobotomy Kit Build | -11 -10 -10 -10 -9 -8 -8 ------- Run | Jun Mat Min Exi Min Mat Gar Slots Evolved 5 | . 1 . . . 4 . Power 1 | . . . . . 1 . Propulsion 2 | . 1 . . . 1 . Utility 2 | . . . . . 2 . Weapon . | . . . . . . . Parts Attached 63 | 6 11 . 5 . 32 9 Power 12 | 1 2 . . . 4 5 Engine 9 | 1 2 . . . 2 4 Core 3 | . . . . . 2 1 Reactor . | . . . . . . . Propulsion 17 | 2 3 . . . 11 1 Treads 1 | . . . . . 1 . Leg 2 | 2 . . . . . . Wheel . | . . . . . . . Hover 7 | . 3 . . . 4 . Flight 7 | . . . . . 6 1 Utility 9 | 2 3 . . . 4 . Device 3 | . 1 . . . 2 . Storage 1 | 1 . . . . . . Processor 1 | . 1 . . . . . Hackware . | . . . . . . . Protection 4 | 1 1 . . . 2 . Artifact . | . . . . . . . Weapon 25 | 1 3 . 5 . 13 3 Energy Gun 8 | . 3 . 1 . 4 . Energy Cannon 5 | . . . 3 . 1 1 Ballistic Gun 6 | 1 . . . . 4 1 Ballistic Cannon 5 | . . . . . 4 1 Launcher . | . . . . . . . Special Weapon 1 | . . . 1 . . . Impact Weapon . | . . . . . . . Slashing Weapon . | . . . . . . . Piercing Weapon . | . . . . . . . Special Melee Weapon . | . . . . . . . Unidentified Prototypes 8 | . . . 3 . 5 . Parts Lost 14 | . 1 . . . 3 10 Power 4 | . 1 . . . . 3 Propulsion 6 | . . . . . 2 4 Utility 3 | . . . . . . 3 Weapon 1 | . . . . . 1 . Highest Loss Streak 4 | . 1 . . . 2 4 To Critical Strikes 1 | . . . . . 1 . Average Slot Usage (%) 86 | . 96 100 97 100 87 72 Engine 8 | . 12 12 12 12 7 4 Core 1 | . . . . . 2 2 Hover 13 | . 33 37 37 37 8 . Flight 15 | . . . . . 19 24 Device 13 | . 10 12 12 12 15 11 Processor 8 | . . 12 12 12 8 8 Protection 5 | . 11 . . . 7 3 Energy Gun 8 | . 21 25 16 12 5 . Ballistic Gun 3 | . 1 . . . 6 . Ballistic Cannon 5 | . . . . . 2 15 Naked Turns . | . . . . . . . Heaviest Build 33 | 18 22 13 20 20 33 21 Greatest Support 29 | 20 21 21 21 21 29 14 Greatest Overweight (x) 7 | . 2 . . . 7 3 Average Overweight (x) . | . . . . . . . Largest Inventory Capacity 10 | 10 10 5 5 5 5 5 Average Capacity 5 | 7 5 5 5 5 5 5 Most Carried 5 | . 1 . 5 4 5 5 Average Carried 3 | . . . 2 4 4 4 Final Capacity 10 | 10 5 5 5 5 5 5 Final Carried 5 | . . . 4 4 5 4 Class Distribution -------------------- 65% | Hacker-Mutant 21% | Hacker-Skirmisher 8% | Hacker-Scout 3% | Hacker-Sprinter Dominant Class ---------------- Hacker-Mutant | -10/Materials Hacker-Mutant | -10/Mines Hacker-Mutant | -10/Exiles Hacker-Mutant | -9/Mines Hacker-Mutant | -8/Materials Hacker-Mutant | -8/Garrison Resources | -11 -10 -10 -10 -9 -8 -8 ----------- Run | Jun Mat Min Exi Min Mat Gar Matter Collected 1293 | 193 152 40 . 31 470 407 Remotely . | . . . . . . . Salvage Created 1344 | 110 83 74 . . 744 333 Parts 88 | 4 2 10 . . 46 26 Haulers Intercepted 4 | . 1 . . . 3 . Recyclers Shooed 1 | . . . . . 1 . Parts Field Recycled . | . . . . . . . Retrieved Matter . | . . . . . . . Parts Self-Destructed . | . . . . . . . Prevented . | . . . . . . . Kills | -11 -10 -10 -10 -9 -8 -8 ------- Run | Jun Mat Min Exi Min Mat Gar Combat Hostiles Destroyed 36 | . . 4 . . 17 15 Guns 10 | . . 4 . . 6 . Cannons 25 | . . . . . 10 15 AOE 1 | . . . . . 1 . Classes Destroyed 12 | 2 3 1 . . 6 . Worker 2 | . 1 . . . 1 . Builder 2 | . . . . . 2 . Tunneler 1 | 1 . . . . . . Hauler 4 | . 1 . . . 3 . Recycler 1 | 1 . . . . . . Operator 1 | . . . . . 1 . Watcher 3 | . 2 . . . 1 . Swarmer 16 | . . 4 . . 6 6 Grunt 9 | . . . . . 4 5 Brawler 1 | . . . . . 1 . Sentry 8 | . . . . . 5 3 Hunter 2 | . . . . . 1 1 Best Kill Streak 8 | 2 3 3 . . 8 5 Combat Bots Only 5 | . . 3 . . 4 5 Max Kills in Single Turn 1 | 1 1 1 . . 1 1 Gunslinging . | . . . . . . . Exploded 1 | . . . . . 1 . Melee . | . . . . . . . Uniques/NPCs Destroyed . | . . . . . . . Combat | -11 -10 -10 -10 -9 -8 -8 -------- Run | Jun Mat Min Exi Min Mat Gar Damage Taken 1869 | . 71 52 . . 612 1134 Core 586 | . 8 19 . . 97 462 Absorbed by Shields 36 | . . . . . . 36 Core Remaining (%) 94 | 100 . . . 89 . . Volleys Fired 179 | 9 5 7 . . 99 59 Largest 2 | 1 2 2 . . 2 2 Hottest 120 | 20 90 90 . . 120 120 Shots Fired 237 | 9 10 14 . . 120 84 Gun 105 | 9 10 14 . . 68 4 Cannon 132 | . . . . . 52 80 Launcher . | . . . . . . . Special . | . . . . . . . Kinetic 151 | 9 . . . . 61 81 Thermal 10 | . . . . . 7 3 Explosive . | . . . . . . . Electromagnetic 76 | . 10 14 . . 52 . Robot Hit Streak 48 | 9 5 5 . . 36 48 Robot Miss Streak 3 | . 2 2 . . 3 2 Penetration Max . | . . . . . . . Secondary Targets 1 | . . . . . 1 . Max Gunslinging Chain 1 | . . . . . 1 . Shots Hit Robots 157 | 9 8 8 . . 85 47 Core Hits 84 | 3 4 5 . . 52 20 Critical Kills . | . . . . . . . Critical Parts Destroyed . | . . . . . . . Critical Strikes 1 | . . . . . 1 . Blast 1 | . . . . . 1 . Melee Attacks . | . . . . . . . Impact . | . . . . . . . Slashing . | . . . . . . . Piercing . | . . . . . . . Sneak Attacks . | . . . . . . . Combat Hostiles . | . . . . . . . Follow-up Attacks . | . . . . . . . Damage Inflicted 4045 | 116 432 113 . . 2121 1263 Guns 1247 | 116 207 66 . . 858 . Cannons 2265 | . . . . . 1002 1263 Explosions 481 | . 225 . . . 256 . Melee . | . . . . . . . Ramming 52 | . . 47 . . 5 . Kinetic 2329 | 116 . . . . 1050 1163 Thermal 621 | . 225 . . . 296 100 Explosive . | . . . . . . . Electromagnetic 1043 | . 207 66 . . 770 . Impact . | . . . . . . . Slashing . | . . . . . . . Piercing . | . . . . . . . Highest Corruption . | . . . . . . . Average Corruption . | . . . . . . . Corruption Purged . | . . . . . . . Corruption Blocked . | . . . . . . . Overload Shots . | . . . . . . . Overflow Damage 122 | . 58 . . . 34 30 Projectiles 64 | . . . . . 34 30 Explosions 58 | . 58 . . . . . Melee . | . . . . . . . Knockbacks 15 | . . . . . 7 8 Impact . | . . . . . . . Kinetic 15 | . . . . . 7 8 Secondary . | . . . . . . . Self-Inflicted Damage 128 | . 72 22 . . 34 . Shots 3 | . 2 . . . 1 . Rammed 5 | . . 4 . . 1 . Targets Rammed 5 | . . 4 . . 1 . Kicked . | . . . . . . . Crushed . | . . . . . . . Highest Temperature 56 | . 6 . . . 56 36 Average Temperature 15 | . 6 . . . 15 16 Received Heat Transfer 948 | . . . . . 324 624 Siege Activations . | . . . . . . . Robots Corrupted 1 | . . . . . 1 . Combat Hostiles . | . . . . . . . Parts Fried 8 | . 4 . . . 4 . Impact Corruptions . | . . . . . . . Robots Melted . | . . . . . . . Combat Hostiles . | . . . . . . . Parts Melted . | . . . . . . . Heat Transferred 870 | . 200 . . . 430 240 Parts Sabotaged . | . . . . . . . Parts Stolen . | . . . . . . . Parts Stripped . | . . . . . . . Power Chain Reactions 5 | . 1 . . . 4 . Missiles Intercepted . | . . . . . . . Alert | -11 -10 -10 -10 -9 -8 -8 ------- Run | Jun Mat Min Exi Min Mat Gar Peak Influence 520 | 10 137 167 . . 333 520 Initial 165 | . 4 37 . . . 165 Average 135 | 3 64 119 . . 82 286 Maximum Alert Level 2 | . . . . . 1 2 Low Security (%) 72 | 100 100 100 . 100 80 33 Level 1 20 | . . . . . 19 38 Level 2 7 | . . . . . . 27 Level 3 . | . . . . . . . Level 4 . | . . . . . . . Level 5 . | . . . . . . . High Security . | . . . . . . . Max Security . | . . . . . . . Squads Dispatched 4 | . . . . . 4 . Investigation 1 | . . . . . 1 . Extermination . | . . . . . . . Reinforcement 1 | . . . . . 1 . Assault . | . . . . . . . Garrison 2 | . . . . . 2 . Intercept . | . . . . . . . Searches Triggered . | . . . . . . . Construction Impeded . | . . . . . . . Haulers Reinforced . | . . . . . . . Active Scanning Responses . | . . . . . . . Cargo Convoy Interrupts . | . . . . . . . Stealth | -11 -10 -10 -10 -9 -8 -8 --------- Run | Jun Mat Min Exi Min Mat Gar Distress Signals 5 | . . . . . 4 1 Communications Jammed . | . . . . . . . Distress Signals . | . . . . . . . Times Spotted 65 | . 3 5 . . 32 25 Peak Tracking Total 10 | . 2 2 . . 5 10 Tactical Retreats 3 | . . 1 . . 2 . Traps | -11 -10 -10 -10 -9 -8 -8 ------- Run | Jun Mat Min Exi Min Mat Gar Traps Triggered 12 | . 1 . . . 3 8 Indirectly . | . . . . . . . Trap Hack Attempts . | . . . . . . . Triggered . | . . . . . . . Disarmed . | . . . . . . . Reprogrammed . | . . . . . . . Reused . | . . . . . . . Traps Extracted . | . . . . . . . Installed . | . . . . . . . Triggered . | . . . . . . . Machines | -11 -10 -10 -10 -9 -8 -8 ---------- Run | Jun Mat Min Exi Min Mat Gar Machines Disabled 6 | . 3 . . . 2 1 Max in Single Turn 2 | . 2 . . . 1 1 Garrison Relay 1 | . . . . . . 1 Machines Repaired . | . . . . . . . Machines Sabotaged . | . . . . . . . Overloaded Fab Kills . | . . . . . . . Hacking | -11 -10 -10 -10 -9 -8 -8 --------- Run | Jun Mat Min Exi Min Mat Gar Machines Accessed 8 | . 3 . . . 4 1 Terminals 7 | . 3 . . . 3 1 Fabricators . | . . . . . . . Repair Stations . | . . . . . . . Recycling Units . | . . . . . . . Scanalyzers . | . . . . . . . Garrison Access 1 | . . . . . 1 . Total Hacks 20 | . 6 . . . 13 1 Successful 13 | . 4 . . . 8 1 Failed 7 | . 2 . . . 5 . Catastrophic 1 | . . . . . 1 . Database Lockouts . | . . . . . . . Manual 11 | . 3 . 1 . 7 . Terminals 19 | . 6 . . . 12 1 Fabricators . | . . . . . . . Repair Stations . | . . . . . . . Recycling Units . | . . . . . . . Scanalyzers . | . . . . . . . Garrison Access 1 | . . . . . 1 . Terminal Hacks 10 | . 4 . . . 5 1 Branch Access Points 2 | . 1 . . . 1 . Emergency Access Points 2 | . 1 . . . . 1 Security Status 1 | . 1 . . . . . Surveillance Status 1 | . . . . . 1 . Recall Investigation 1 | . . . . . 1 . Registered Components 1 | . 1 . . . . . Zone Layout 2 | . . . . . 2 . Fabricator Hacks . | . . . . . . . Repair Station Hacks . | . . . . . . . Recycling Unit Hacks . | . . . . . . . Scanalyzer . | . . . . . . . Garrison Access Hacks 1 | . . . . . 1 . Unlock Access 1 | . . . . . 1 . Unauthorized Hacks 2 | . . . . . 2 . Terminals 2 | . . . . . 2 . Track 1 | . . . . . 1 . Assimilate 1 | . . . . . 1 . Fabricators . | . . . . . . . Repair Stations . | . . . . . . . Recycling Units . | . . . . . . . Scanalyzers . | . . . . . . . Garrison Access . | . . . . . . . Data Cores Recovered . | . . . . . . . Used . | . . . . . . . Hacking Detections 5 | . 2 . . . 3 . Full Trace Events 2 | . . . . . 2 . Feedback Events . | . . . . . . . Feedback Blocked . | . . . . . . . Robot Schematics Acquired . | . . . . . . . Robots Built . | . . . . . . . Authchips . | . . . . . . . Time . | . . . . . . . Total Robot Build Rating . | . . . . . . . Part Schematics Acquired . | . . . . . . . Parts Built . | . . . . . . . Authchips . | . . . . . . . Time . | . . . . . . . Total Part Build Rating . | . . . . . . . Parts Repaired . | . . . . . . . Time . | . . . . . . . Parts Recycled . | . . . . . . . Recycled Matter . | . . . . . . . Retrieved Matter . | . . . . . . . Retrieved Components . | . . . . . . . Parts Scanalyzed . | . . . . . . . Part Schematics Acquired . | . . . . . . . Parts Damaged . | . . . . . . . Bothacking | -11 -10 -10 -10 -9 -8 -8 ------------ Run | Jun Mat Min Exi Min Mat Gar Used RIF Installer . | . . . . . . . Robots Hacked . | . . . . . . . Non-combat . | . . . . . . . Combat . | . . . . . . . Robot Hacks Applied . | . . . . . . . Relay Couplers Released 5 | . . . . . . 5 Machine Destruction 5 | . . . . . . 5 Fabnet Peak Effective % . | . . . . . . . Robots Rewired 1 | . . . . . 1 . Allies Hacked . | . . . . . . . Hacks Repelled . | . . . . . . . Allies | -11 -10 -10 -10 -9 -8 -8 -------- Run | Jun Mat Min Exi Min Mat Gar Total Allies 1 | . . . . . 1 . Largest Group 1 | . . . . . 1 . Highest-Rated Group 16 | . . . . . 16 . Highest-Rated Ally 16 | . . . . . 16 . Total Orders . | . . . . . . . Ally Attacks . | . . . . . . . Total Damage . | . . . . . . . Kills . | . . . . . . . Allies Corrupted . | . . . . . . . Allies Melted . | . . . . . . . Intel | -11 -10 -10 -10 -9 -8 -8 ------- Run | Jun Mat Min Exi Min Mat Gar Robot Analysis Total . | . . . . . . . Derelict Logs Recovered 1 | . . 1 . . . . Drone Launches . | . . . . . . . Drone Recoveries . | . . . . . . . Exploration | -11 -10 -10 -10 -9 -8 -8 ------------- Run | Jun Mat Min Exi Min Mat Gar Turns Passed 2435 | 67 149 307 122 24 1169 597 Spaces Moved 1887 | 40 206 543 216 47 542 293 Core 11 | 10 . . . . 1 . Treads . | . . . . . . . Legs 34 | 30 4 . . . . . Wheels . | . . . . . . . Hover 1168 | . 202 543 216 47 160 . Flight 674 | . . . . . 381 293 Fastest Speed 29 | 50 52 52 52 52 29 30 Average Speed 71 | 102 54 52 52 52 91 93 Slowest Speed 400 | 120 180 52 52 52 400 245 Overloaded Moves . | . . . . . . . Propulsion Burnouts . | . . . . . . . Robots Hopped . | . . . . . . . Cave-ins Triggered . | . . . . . . . Exploration Rate (%) 41 | 3 44 92 62 12 41 38 Regions Visited 6 Branch Regions 3 Pre-discovered Areas 1 | . . 1 . . . . Known Exits Taken 6 | 1 1 1 1 1 1 . Unknown Exits Taken . | . . . . . . . Scrap Searched 1 | . . . . 1 . . Spaces Dug 2 | . . . . . 2 . Terrain Destroyed 49 | . 22 . . . 27 . Melee . | . . . . . . . Projectile 6 | . . . . . 6 . AOE 43 | . 22 . . . 21 . Terrain Rammed . | . . . . . . . Walls Destroyed . | . . . . . . . Machines Disabled . | . . . . . . . Actions | -11 -10 -10 -10 -9 -8 -8 --------- Run | Jun Mat Min Exi Min Mat Gar Total 2728 | 54 230 553 226 46 1089 530 Wait 423 | . 2 . . . 394 27 Move 1882 | 39 205 542 215 46 542 293 Hop . | . . . . . . . Pick Up 5 | . 1 . 2 . 1 1 Fast Attach 47 | 6 9 . 1 . 26 5 Attach 9 | . 1 . 3 . 3 2 Detach 7 | . . . 4 . 3 . Swap 7 | . 1 . 1 . 3 2 Drop 24 | . 6 . . . 15 3 Fire 179 | 9 5 7 . . 99 59 Melee . | . . . . . . . Ram 5 | . . 4 . . 1 . Kick . | . . . . . . . Crush . | . . . . . . . Escape Stasis 138 | . . . . . . 138 Rewire 2 | . . . . . 2 . Trap . | . . . . . . . Miscellaneous . | . . . . . . . Route ------- -11/Junkyard -10/Materials (discovered 2 exits: *Mat / *Min) -10/Mines (discovered 3 exits: *Mat x2 / *Exi) -10/Exiles -9/Mines -8/Materials (discovered 2 exits: *Fac / Gar) -8/Garrison (discovered 1 exit: *Mat) History --------- Turn | Location | Event 4 | -11/Junkyard | Identified exit to Materials 4 | -11/Junkyard | Discovered exit to Materials (range 14) 68 | -11/Junkyard | Entered Materials 68 | -10/Materials | Evolved 1 slot: Propulsion x1 164 | -10/Materials | Identified exit to Materials 164 | -10/Materials | Discovered exit to Materials (range 12) 170 | -10/Materials | Identified exit to Mines 217 | -10/Materials | Entered Mines 246 | -10/Mines | Received a Rocket Launcher from a helpful Derelict 306 | -10/Mines | Build established: Hacker-Mutant 348 | -10/Mines | Discovered exit to Materials (range 13) 449 | -10/Mines | Discovered exit to Materials (range 5) 464 | -10/Mines | Learned location of Zion (-7) 522 | -10/Mines | Deemed a non-threat by the Exiles lab entrance 522 | -10/Mines | Identified exit to Exiles 522 | -10/Mines | Discovered exit to Exiles (range 5) 524 | -10/Mines | Entered Exiles 539 | -10/Exiles | Met 8R-AWN 546 | -10/Exiles | Met EX-HEX 561 | -10/Exiles | Met EX-BIN 567 | -10/Exiles | Aligned with FarCom system 568 | -10/Exiles | Given EX-Vault access code 580 | -10/Exiles | Opened EX-Vault 583 | -10/Exiles | Found Prototype Energy Cannon 586 | -10/Exiles | Found Prototype Energy Cannon 587 | -10/Exiles | Identified Gui. Plasma Cannon 589 | -10/Exiles | Identified YOLO Cannon 592 | -10/Exiles | Found Prototype Special Weapon 592 | -10/Exiles | Identified Field Lobotomy Kit 608 | -10/Exiles | Warned to stay clear of 0b10 Research branches 623 | -10/Exiles | Met EX-DEC 642 | -10/Exiles | Identified exit to Mines 642 | -10/Exiles | Discovered exit to Mines (range 11) 646 | -10/Exiles | Stole three prototypes: Gui. Plasma Cannon, YOLO Cannon, Field Lobotomy Kit 646 | -10/Exiles | Entered Mines 663 | -9/Mines | Met a Derelict bent on vengeance 664 | -9/Mines | Identified exit to Materials 664 | -9/Mines | Discovered exit to Materials (range 8) 670 | -9/Mines | Entered Materials 670 | -8/Materials | Evolved 4 slots: Power x1, Propulsion x1, Utility x2 847 | -8/Materials | Identified exit to Factory 847 | -8/Materials | Discovered exit to Factory (range 16) 1733 | -8/Materials | Garrison activated, responded to threat 1839 | -8/Materials | Identified exit to Garrison 1839 | -8/Materials | Entered Garrison 1990 | -8/Garrison | Triggered checkpoint 2052 | -8/Garrison | Build established: Hacker-Skirmisher 2154 | -8/Garrison | Triggered checkpoint 2158 | -8/Garrison | Lost 4 parts (2n2u) 2215 | -8/Garrison | Identified exit to Materials 2215 | -8/Garrison | Discovered exit to Materials (range 10) 2256 | -8/Garrison | Triggered checkpoint 2269 | -8/Garrison | Garrison Relay disabled 2361 | -8/Garrison | Core integrity fell below 50% 2421 | -8/Garrison | Core integrity fell below 20% 2436 | -8/Garrison | Destroyed by H-55 Commando with Gauss Rifle Last Messages --------------- Acquired 5 matter. Acquired 8 matter. Acquired 4 matter. Lgt. Ion Engine destroyed. Penetrated by Slug. A-27 Freighter distress signal alerts nearby ally. S-10 Pest destroyed. Garrison Door activated. A-27 Freighter destroyed. Slug penetrates Wall. Penetrated by Slug. Acquired Imp. Ion Engine. Critical hit (Burn: +37). Slug penetrates Wall. Penetrated by Slug. Imp. Cooling System destroyed. Slug penetrates Reinforced Barrier. Acquired 8 matter. Slug penetrates Reinforced Barrier. Penetrated by Slug. Map ----- +----------------------------------------------------+ | ????????### #???????????????????????????????????? | | ??????????# #????+??+???????????????????????????? | | ??????????# #???????????????????????????????????? | | ??????????# #???????????????????????????+???????? | | ????####### #??????????????????????????????????+? | | ????# ######++######??????????????????????? | | ????# ##### #??????????????+???????? | | ????# #???# ^^ ^ #??????????????????????? | | ????# #???#+######+##### #??????????????????????? | | ????# #????????????????# #??????????????????????? | | ????# +????????????????# #??????????????????????? | | ????" #????????????????#[]#?????????+??????????+?? | | ????" #????????????????#[[#??????????????????????? | | ????" #????????????????#!]#??####????????????????? | | ????? ?????????????????#!%#? #? #????????????? | | ????? ????????????????##*!## ## ##???????????? | | ????? ????????????????#!!!== #???????????? | | ????? ????????????????; [!! g +???????????? | | ????? ????????????????# #???????????? | | ????? ????????????????# ## ## #???????????? | | ????? ??????????????### gg## g ## ##??????????? | | ????????????????????#= g g +?????????? | | ?????????????######## #?????????? | | ?????????????# ;= = #?????????? | | ?#???????????# ######%= #?????????? | | ? ???????????# #????### [@## ## #???????????? | | ? ??????????##"########[=%## ## #???????????? | | ? ??????????# % =[* #???????????? | | # #?????????# ! [%% +???????????? | | ! !?????????# #####+## h =%* #???????????? | | ! !?????????# #??????## h## ## ##???????????? | | # #?????????# ##### #?# #? #?? #????????????? | | # #????????## " #?# #?#+###????????????????? | | # #????????#T ##### + #?# #??????????????????? | | # #?######### #???#???# #?# #??????????????????? | | # +?? +[ *#?# #???# ??# #?# #??????????????????? | | #+##### * ### #####+###^ ### #??????????????????? | | # %=[! ] " #??????????+???????? | | # ^ *^^[ #####??????????????????? | | ####### ! ### ############??????+??????????????+? | | ??????#!!!#?# #?????????????????????????????????? | | ?????#""!""## #?????????????????????????????????? | | ?????######## #?????????????????????????????????? | | ????????????# #?????????????????????????????????? | | ????????????# #?????????????????????????????????? | | ????????????# ############??????????????????????? | | ????????????# ##""""""""""#?????????????????????? | | ????????????# ##"!!!!!!"""#?????????????????????? | | ????????????# %## ""#?????????????????????? | | ???########## ## !"#?????????????????????? | +----------------------------------------------------+ Best States ------------- Heat Dissipation 58 Energy Generation 19 Energy Capacity 390 Matter Stores 300 Matter Capacity 300 Sight Range 16 Terrain Scan Range 16 Terrain Scan Density 10 Armor Coverage 150 Resistance: KI 35 Resistance: TH 35 Resistance: EX 35 Resistance: EM 35 Resistance: I 35 Resistance: S 35 Resistance: P 35 Evasion (%) 64 Targeting Accuracy 5 Recoil Reduction 1 Offensive Hacking 20 Item Schematics ----------------- None Robot Schematics ------------------ None Fabricated ------------ Nothing Alien Tech Used ----------------- None Achievements -------------- None Challenges ------------ None Game ------ Seed NetworkGrapheneFlakker Manual? 0 Play Time 00:47:19 Cumulative 1717.6 hours Start 2023.12.02 @ 18:21:14 End 2023.12.02 @ 21:48:53 Sessions 1 Manual Loads 0 Difficulty Explorer Special Mode None Game No. 69 Rogue 0 Adventurer 0 Explorer 69 Win Type - Total 3 Types 1/0/0/2/0/0/0/0/0 Lore% 51 Gallery% 83 Achievement% 100 Wizard Run 0 Options --------- ASCII 0 Keyboard 0 Movement Mouse Keybinds 0 Fullscreen 0 Font 32/Smallcaps Map View 76x50 Tactical HUD 0 Map Filters NONE Filters NONE Steam 1 RUN: 83ea5e4f-1011-4235-9bb7-33daf9cecaea